bitfinex/quotes_ETHUSD_20240714
["timestamp","ask_amount","ask_price","bid_price","bid_amount"]
[1720995191616,1.5584172,3266.3,3265.2,0.53209911]
[1720995191815,1.5584172,3266.2,3265.2,0.53209911]
[1720995192019,1.5584172,3266.1,3265.2,0.53209911]
[1720995192214,1.5584172,3266.0,3265.3,0.53050769]
[1720995192415,1.5584172,3265.9,3265.4,0.06123786]
[1720995192615,1.5584172,3265.8,3265.4,0.06123786]
[1720995192810,1.5584172,3265.7,3265.4,0.06123786]
[1720995193035,1.5584172,3265.6,3265.4,0.06123786]
[1720995193345,1.55840519,3265.5,3265.3,0.53050769]
[1720995193545,1.28056426,3266.4,3265.3,0.53050769]
[1720995193747,2.83898875,3266.3,3265.3,0.53050769]
[1720995193954,1.55842449,3266.2,3265.3,0.53050769]
[1720995194147,1.55842449,3266.1,3265.3,0.53050769]
[1720995194345,1.55842449,3266.0,3265.3,0.53050769]
[1720995194560,1.55842449,3265.9,3265.3,0.53050769]
[1720995194855,1.55842449,3265.8,3265.3,0.53050769]
[1720995195038,1.55842449,3265.7,3265.3,0.53050769]
[1720995195354,1.55842449,3265.6,3265.1,2.2616]
[1720995195568,1.55842449,3265.5,3265.1,2.2616]
[1720995195715,1.28056426,3266.1,3265.1,5.2616]
[1720995195716,1.55842449,3265.4,3265.1,5.2616]
[1720995195915,1.28056426,3266.1,3265.1,7.71175]
[1720995196118,1.55850836,3266.0,3265.1,7.71175]
[1720995196358,1.55850836,3265.9,3265.2,0.83210011]
[1720995196575,1.55850836,3265.8,3265.1,3.0]
[1720995196719,1.55850836,3265.7,3264.9,0.3196492]
[1720995196919,1.55850836,3265.6,3264.9,0.3196492]
[1720995197235,1.55850836,3265.5,3264.9,0.3196492]
[1720995197435,1.55850836,3265.4,3264.9,0.3196492]
[1720995197641,1.55850836,3265.3,3264.9,0.3196492]
[1720995197965,1.55850836,3265.2,3264.9,0.3196492]
[1720995198129,1.55850836,3265.1,3264.4,3.0]
[1720995198339,4.31156259,3265.9,3264.9,2.4551]
[1720995198340,1.28056426,3265.9,3264.9,2.4551]
[1720995198533,2.74973393,3265.8,3264.9,2.4551]
[1720995198719,1.46916967,3265.7,3264.9,2.4551]
[1720995198921,1.46916967,3265.7,3264.7,3.0]
[1720995198922,1.46916967,3265.6,3264.7,3.0]
[1720995199165,1.46916967,3265.5,3264.6,3.31969447]
[1720995199318,1.46916967,3265.4,3264.7,0.85253445]
[1720995199520,1.46916967,3265.3,3264.6,0.31969447]
[1720995199730,1.46916967,3265.2,3264.6,0.31969447]
[1720995199957,1.46916967,3265.1,3264.6,0.31969447]
[1720995200158,1.46916967,3265.0,3264.6,0.31969447]
[1720995200358,1.46916967,3264.9,3264.6,0.31969447]
[1720995200521,1.46916967,3264.8,3264.6,0.31969447]
[1720995200722,1.46916967,3264.7,3264.6,0.31969447]
[1720995200951,2.74973393,3265.1,3264.0,2.4551]
[1720995201155,1.46916967,3265.0,3264.2,3.33968542]
[1720995201468,3.82046967,3264.9,3264.2,3.33968542]
[1720995201619,1.46916967,3264.8,3264.2,3.02]
[1720995201821,1.46916967,3264.7,3264.2,3.02]
[1720995202017,1.46916967,3264.6,3263.7,6.10315111]
[1720995202260,1.46916967,3264.5,3263.7,0.83778511]
[1720995202583,3.63186426,3264.9,3263.8,0.31964625]
[1720995202584,1.46916967,3264.4,3263.8,0.31964625]
[1720995202768,1.46916967,3264.3,3263.8,0.31964625]
[1720995202936,1.28056426,3264.8,3263.8,0.31964625]
[1720995202937,1.46916967,3264.2,3263.8,0.31964625]
[1720995203139,1.46916967,3264.1,3263.8,0.96285939]
[1720995203467,3.63186426,3264.9,3263.8,0.96285939]
[1720995203628,1.4662505,3264.8,3263.8,0.31964625]
[1720995205924,1.4662505,3264.7,3263.8,0.31964625]
[1720995206128,1.4662505,3264.6,3263.8,0.31964625]
[1720995206375,1.4662505,3264.5,3263.8,0.31964625]
[1720995206540,1.4662505,3264.4,3263.9,0.33196463]
[1720995206744,1.465945,3264.3,3263.9,0.33196463]
[1720995207054,1.28401658,3265.0,3263.9,0.33196463]
[1720995207258,2.74981066,3264.9,3263.8,0.31964625]
[1720995207640,1.46579408,3264.8,3263.8,0.31964625]
[1720995207788,1.46579408,3264.7,3263.8,0.31964625]
[1720995207969,1.46579408,3264.6,3263.8,0.31964625]
[1720995208275,1.46579408,3264.5,3263.8,0.31964625]
[1720995208474,1.60502073,3265.0,3263.8,0.31964625]
[1720995208475,1.46579408,3264.4,3263.8,0.31964625]
[1720995208655,1.46579408,3264.3,3263.8,0.31964625]
[1720995208862,1.28401658,3264.8,3263.8,0.31964625]
[1720995208863,1.46579408,3264.2,3263.8,0.31964625]
[1720995209045,1.46579408,3264.2,3261.2,2.67513591]
[1720995209046,4.0889,3264.1,3261.2,2.67513591]
[1720995209360,4.0889,3264.1,3259.7,2.9164151]
[1720995209361,1.5,3261.0,3259.7,2.9164151]
[1720995209686,4.25691983,3262.5,3258.0,1.7]
[1720995209687,1.60316143,3260.0,3258.0,1.7]
[1720995209914,1.60316143,3259.4,3257.1,0.63428622]
[1720995210208,0.64157813,3258.5,3257.5,2.592]
[1720995210341,3.38763991,3259.3,3256.9,2.4563]
[1720995210342,2.3253,3259.3,3256.9,2.4563]
[1720995210535,0.64157813,3259.6,3257.3,2.3653]
[1720995210741,0.40570714,3259.9,3258.2,3.478]
[1720995210977,0.40570714,3259.9,3258.2,2.4553]
[1720995211178,0.40570714,3259.9,3258.6,3.478]
[1720995211382,0.40570714,3259.9,3258.8,3.478]
[1720995211544,0.40570714,3259.9,3258.9,0.06134238]
[1720995211744,0.40472853,3259.8,3259.1,1.7]
[1720995211944,0.40472853,3259.8,3259.2,0.0613391]
[1720995212146,0.40472853,3259.8,3259.1,1.7]
[1720995212345,0.9546378,3262.1,3259.0,3.478]
[1720995212346,2.406,3262.1,3259.6,4.83336]
[1720995212672,2.45253,3262.0,3259.7,3.0]
[1720995212868,2.45258,3261.9,3259.8,1.08791]
[1720995213040,2.406,3262.1,3259.9,0.06133116]
[1720995213246,2.406,3262.1,3260.0,0.55]
[1720995213803,2.406,3262.1,3259.8,0.53791]
[1720995213804,2.45304,3261.3,3259.8,0.53791]
[1720995214009,2.406,3262.1,3259.1,3.0]
[1720995214307,6.01227399,3262.3,3258.3,1.5378]
[1720995214308,2.2669,3260.8,3258.3,1.5378]
[1720995214529,0.6364252,3262.2,3259.2,1.7]
[1720995214530,5.2669,3261.6,3259.2,1.7]
[1720995214686,2.45303,3261.3,3259.2,1.7]
[1720995214887,2.45303,3261.3,3259.1,7.28]
[1720995215071,3.0,3261.5,3259.3,1.7]
[1720995215276,2.45287,3261.5,3259.2,3.1696]
[1720995215499,3.0,3261.5,3259.2,2.4416]
[1720995215674,2.45326,3261.0,3259.2,2.4416]
[1720995215880,2.45327,3261.0,3258.9,3.02]
[1720995216610,2.4537,3260.4,3258.4,2.4416]
[1720995216915,2.45386,3260.2,3258.4,2.4416]
[1720995217214,0.245386,3260.1,3258.5,0.39794]
[1720995217522,2.45399,3260.0,3258.5,0.39794]
[1720995217689,2.45399,3260.0,3257.8,6.1]
[1720995217690,2.45422,3259.7,3257.8,6.1]
[1720995218412,2.45462,3259.2,3257.8,6.1]
[1720995218622,2.45459,3259.2,3257.8,3.02]
[1720995218791,2.4542,3259.8,3257.8,3.02]
[1720995219118,2.45433,3259.6,3257.8,3.02]
[1720995219416,2.945225,3259.5,3257.9,0.302]
[1720995219615,2.45466,3259.1,3256.6,4.88124]
[1720995219915,2.45475,3259.0,3256.6,7.77124]
[1720995220140,2.45475,3259.0,3256.6,10.8947]
[1720995220274,2.3974,3259.3,3256.6,10.8947]
[1720995220477,2.45497,3258.7,3256.6,10.8947]
[1720995220671,2.45511,3258.5,3256.7,1.70147]
[1720995220927,2.3974,3258.3,3256.6,7.28]
[1720995221211,2.45564,3257.8,3256.6,7.28]
[1720995221510,2.45572,3257.7,3256.6,7.28]
[1720995221684,3.0,3257.7,3256.6,7.28]
[1720995221887,2.45591,3257.5,3256.6,7.28]
[1720995222091,2.701531,3257.4,3256.3,0.1160225]
[1720995222295,2.3974,3257.1,3256.3,0.1160225]
[1720995223014,2.45576,3257.7,3256.3,0.1160225]
[1720995223015,3.0,3257.7,3256.3,0.1160225]
[1720995223173,8.46739399,3258.5,3256.3,0.1160225]
[1720995223487,8.46739399,3258.5,3256.3,7.3960225]
[1720995223488,2.45571,3257.8,3256.3,7.3960225]
[1720995223680,0.245571,3257.7,3256.3,7.3960225]
[1720995223876,3.55,3258.4,3256.3,7.3960225]
[1720995224099,2.45551,3258.0,3256.3,7.3960225]
[1720995224301,3.55,3258.4,3256.4,0.06141022]
[1720995224302,3.0,3258.1,3256.4,0.06141022]
[1720995224609,8.40967399,3258.5,3256.3,7.3960225]
[1720995224811,6.01227399,3258.5,3256.6,1.7]
[1720995224996,2.3974,3259.2,3256.6,1.7]
[1720995224997,6.01227399,3259.1,3257.1,2.45616]
[1720995225174,6.01227399,3259.1,3257.0,10.28]
[1720995225802,2.4548,3259.0,3257.0,10.28]
[1720995225971,2.45491,3258.8,3257.0,10.28]
[1720995226387,5.45491,3258.8,3257.0,10.28]
[1720995226597,0.790979,3258.7,3257.1,1.028]
[1720995227075,0.55,3258.6,3257.0,7.28]
[1720995227311,3.00505,3258.6,3257.0,7.28]
[1720995227644,3.00505,3258.6,3256.3,0.1160225]
[1720995227645,2.45589,3257.5,3256.3,0.1160225]
[1720995227977,6.1124,3258.4,3256.3,0.1160225]
[1720995227978,3.0,3257.6,3256.3,0.1160225]
[1720995228315,6.1124,3258.4,3256.3,0.85562475]
[1720995228316,5.45529,3258.3,3256.3,0.85562475]
[1720995228514,2.45549,3258.0,3256.3,0.85562475]
[1720995228978,2.45544,3258.1,3256.3,0.85562475]
[1720995229183,3.0,3258.3,3256.4,2.2969]
[1720995229499,2.3974,3258.4,3256.4,2.2969]
[1720995229682,0.23974,3258.3,3256.5,0.31525247]
[1720995229880,0.23974,3258.3,3256.6,2.45649]
[1720995230083,2.45488,3258.9,3256.7,0.55]
[1720995230278,6.0006,3259.0,3256.7,0.55]
[1720995230583,8.45541,3259.0,3256.7,7.28]
[1720995230785,2.45532,3258.3,3256.8,3.0]
[1720995231291,2.45534,3258.2,3256.7,7.28]
[1720995231495,2.4555,3258.0,3256.7,8.03952525]
[1720995231891,2.45581,3257.6,3256.7,7.28]
[1720995232092,2.2856,3257.8,3256.3,0.1160225]
[1720995233320,2.45579,3257.6,3256.3,0.1160225]
[1720995233492,5.45579,3257.6,3256.3,0.1160225]
[1720995233694,2.45579,3257.6,3256.3,0.1160225]
[1720995234000,1.095579,3257.5,3256.3,0.1160225]
[1720995234601,2.45632,3256.9,3256.3,0.1160225]
[1720995234823,4.81137,3258.9,3256.4,2.3355]
[1720995235022,2.3565,3258.9,3256.4,4.79218]
[1720995235412,2.3565,3258.9,3256.7,2.45646]
[1720995235614,0.481129,3258.8,3256.9,2.45631]
[1720995235830,6.01227399,3259.1,3257.0,2.51762918]
[1720995236130,6.01227399,3259.1,3257.1,3.55]
[1720995236494,2.4549,3258.8,3257.1,3.0]
[1720995236688,2.4549,3258.8,3256.8,0.245646]
[1720995237090,6.01227399,3259.1,3256.8,0.245646]
[1720995237290,2.45513,3258.5,3256.9,0.3245646]
[1720995237491,3.0,3258.6,3256.6,2.51794085]
[1720995237733,2.45492,3258.8,3256.7,3.0]
[1720995237932,0.55,3258.7,3256.7,3.0]
[1720995238224,3.0,3258.7,3256.7,2.45646]
[1720995238440,3.0,3258.7,3256.5,3.0]
[1720995238637,0.6012274,3259.0,3257.0,2.45619]
[1720995238793,3.6012274,3259.0,3257.1,0.55]
[1720995239331,3.6012274,3259.0,3257.2,2.51741653]
[1720995239539,0.6012274,3259.0,3257.4,2.45592]
[1720995239951,6.01227399,3259.1,3257.7,2.4414]
[1720995240243,2.4877,3259.6,3257.7,2.4414]
[1720995240244,2.4877,3259.6,3257.8,0.06137446]
[1720995240415,2.4877,3259.6,3257.8,9.79701446]
[1720995240822,4.0,3260.0,3257.9,3.00555]
[1720995241015,4.0,3260.0,3258.0,2.45548]
[1720995241249,1.06250911,3259.9,3258.0,2.45548]
[1720995241423,1.06250911,3259.8,3257.9,0.55]
[1720995241741,6.45399,3260.0,3257.9,0.55]
[1720995241742,6.45399,3260.0,3257.9,3.55]
[1720995242057,1.06252771,3259.9,3258.0,2.51685126]
[1720995242262,0.50625277,3259.8,3258.1,0.60668513]
[1720995243101,1.06250871,3259.7,3258.1,0.60668513]
[1720995243351,3.50625277,3259.8,3258.1,0.60668513]
[1720995243668,1.06251245,3259.7,3258.1,0.60668513]
[1720995243858,0.50625277,3259.8,3258.1,3.06206513]
[1720995244159,0.50625277,3259.8,3258.2,3.30620651]
[1720995244556,2.45393,3260.1,3258.2,3.30620651]
[1720995244709,1.06247268,3260.0,3258.2,0.30620651]
[1720995244909,2.45429,3259.6,3258.3,7.28]
[1720995245150,1.06247268,3259.5,3258.3,7.28]
[1720995245551,1.06249125,3259.4,3258.3,7.28]
[1720995245860,3.0,3260.1,3258.3,7.28]
[1720995246066,2.45416,3259.8,3258.3,7.28]
[1720995246351,2.45439,3259.5,3258.3,7.28]
[1720995246557,1.0624728,3259.4,3258.3,7.28]
[1720995246863,3.5169128,3259.4,3258.3,7.28]
[1720995247020,4.0624728,3259.3,3258.3,7.28]
[1720995247224,1.0624728,3259.2,3258.3,7.28]
[1720995247560,0.40624728,3259.1,3258.3,7.28]
[1720995247784,1.0624728,3259.0,3258.3,7.28]
[1720995248643,0.245416,3259.7,3257.8,7.28]
[1720995248644,1.06258884,3258.9,3257.8,7.28]
[1720995248852,0.245416,3259.7,3257.8,9.73564]
[1720995249022,3.0,3260.0,3257.8,9.73564]
[1720995249023,1.06254509,3259.6,3258.1,2.45541]
[1720995249222,1.06254509,3259.5,3257.9,3.0]
[1720995249450,1.06254509,3260.0,3258.0,3.00543]
[1720995249637,1.06254509,3259.9,3258.1,2.45539]
[1720995249845,1.06254509,3259.8,3258.1,2.45539]
[1720995250049,1.06254509,3259.7,3258.2,0.300539]
[1720995250246,1.06254509,3259.6,3258.2,0.300539]
[1720995250549,1.06254509,3259.5,3258.0,3.00544]
[1720995250739,1.06254509,3259.4,3257.9,3.0]
[1720995251067,1.06254509,3259.3,3257.9,3.0]
[1720995251225,3.0,3260.1,3257.9,3.0]
[1720995251226,3.51669509,3259.8,3257.9,3.0]
[1720995251464,1.06254509,3259.7,3257.9,3.0]
[1720995251735,0.35166951,3259.6,3258.0,1.028]
[1720995251971,1.41419534,3259.6,3258.1,2.45541]
[1720995252272,1.06252583,3259.5,3258.5,2.45511]
[1720995252425,2.2572,3260.2,3258.3,5.45522]
[1720995252625,2.62407258,3260.1,3258.4,7.83]
[1720995252825,2.62407258,3260.0,3258.5,3.0]
[1720995253020,1.06237139,3259.9,3258.4,7.28]
[1720995253225,1.56188862,3259.8,3258.4,7.28]
[1720995253467,2.78044887,3259.7,3258.4,7.28]
[1720995253764,2.62426001,3259.6,3258.4,7.28]
[1720995253941,2.62426001,3259.5,3258.4,7.28]
[1720995254143,2.62426001,3259.4,3258.4,7.28]
[1720995254347,2.62426001,3259.3,3258.4,7.28]
[1720995254552,2.62426001,3259.2,3258.4,7.28]
[1720995254731,2.62426001,3259.1,3258.4,7.28]
[1720995254933,1.56188862,3259.0,3258.4,7.28]
[1720995255183,1.56188862,3258.9,3258.4,7.28]
[1720995255344,1.56188862,3258.8,3258.4,7.28]
[1720995255528,1.56188862,3258.8,3257.5,2.3662]
[1720995255529,1.32511405,3258.7,3257.6,7.28]
[1720995255868,2.62454788,3258.6,3257.6,7.28]
[1720995256038,1.56188862,3258.5,3257.6,7.28]
[1720995256373,0.48141242,3259.3,3257.9,2.45556]
[1720995256539,2.62447615,3259.2,3257.9,2.45556]
[1720995256729,1.56194955,3259.1,3257.9,2.45556]
[1720995256925,1.56194955,3259.0,3258.0,0.245556]
[1720995257130,1.56194955,3258.9,3257.7,5.45567]
[1720995257327,1.56194955,3258.8,3257.8,3.00563]
[1720995257561,0.48141242,3259.3,3257.9,3.0]
[1720995257562,1.56194955,3258.7,3257.9,3.0]
[1720995257859,0.48141242,3259.3,3257.9,3.0]
[1720995258067,2.62453273,3259.2,3257.7,3.0]
[1720995258231,2.62455188,3259.1,3257.8,1.273579]
[1720995258423,2.62455188,3259.0,3257.8,1.273579]
[1720995258630,1.56192562,3258.9,3257.8,1.273579]
[1720995258961,0.31059451,3259.2,3257.8,1.273579]
[1720995258962,1.56192562,3258.8,3257.8,1.273579]
[1720995259268,0.31059451,3259.2,3257.8,1.273579]
[1720995259269,1.56192562,3258.7,3257.9,0.4273579]
[1720995259427,1.56192562,3258.6,3257.9,0.4273579]
[1720995259632,1.56192562,3258.5,3257.9,0.4273579]
[1720995259828,1.56192562,3258.4,3257.9,0.4273579]
[1720995260055,0.31059451,3259.2,3257.9,0.4273579]
[1720995260240,2.62453158,3259.1,3258.0,0.17009369]
[1720995260438,2.62453158,3259.0,3258.0,0.17009369]
[1720995260659,2.62452898,3258.9,3258.0,0.17009369]
[1720995260870,1.56196833,3258.8,3258.0,0.17009369]
[1720995261040,1.56196833,3258.7,3258.0,0.17009369]
[1720995261231,1.56196833,3258.6,3258.1,0.35974516]
[1720995261428,1.56196833,3258.5,3258.1,0.35974516]
[1720995261732,0.48141242,3259.3,3258.1,0.35974516]
[1720995262038,1.56186499,3259.2,3258.1,0.35974516]
[1720995262242,0.48141242,3259.3,3258.1,0.35974516]
[1720995262243,1.56186499,3259.1,3258.1,0.35974516]
[1720995262452,1.56186499,3259.0,3258.2,0.29853289]
[1720995262660,1.56186499,3258.9,3258.2,0.29853289]
[1720995262967,1.56186499,3258.8,3258.2,2.75382289]
[1720995263134,1.56186499,3258.7,3258.3,3.0]
[1720995263326,0.48141242,3259.3,3258.4,0.57538229]
[1720995263526,1.56173414,3259.2,3258.2,0.29853289]
[1720995263826,0.48141242,3259.3,3257.8,2.45562]
[1720995263827,2.62423598,3259.1,3257.8,2.45562]
[1720995264033,2.62423598,3259.0,3257.7,3.0]
[1720995264258,2.62423598,3258.9,3257.7,3.0]
[1720995264428,2.62423598,3258.8,3257.7,3.0]
[1720995264633,2.62435926,3258.7,3257.7,3.0]
[1720995264866,2.62435926,3258.6,3257.8,1.273579]
[1720995265063,2.62435926,3258.5,3257.8,1.273579]
[1720995265275,2.62435926,3258.4,3257.8,1.273579]
[1720995265475,1.56173414,3258.3,3257.8,1.273579]
[1720995265767,2.91241242,3259.3,3257.8,1.273579]
[1720995265931,2.97985056,3259.2,3257.7,3.0]
[1720995266135,2.97985056,3259.2,3257.6,7.28]
[1720995266136,2.62467404,3259.1,3257.6,7.28]
[1720995266353,2.62467404,3259.0,3257.6,7.28]
[1720995266543,0.35517652,3259.2,3257.6,7.28]
[1720995266544,2.62467404,3258.9,3257.6,7.28]
[1720995266850,2.88714144,3258.8,3257.7,0.96462]
[1720995267039,2.62467404,3258.7,3257.6,7.28]
[1720995267340,2.62467404,3258.6,3257.6,7.28]
[1720995267563,2.62467404,3258.5,3257.6,7.28]
[1720995267779,1.56205182,3258.4,3257.6,7.28]
[1720995267975,1.06274578,3258.3,3257.6,1.961]
[1720995268178,2.6247976,3258.2,3257.3,2.45601]
[1720995268384,1.06273245,3258.1,3257.3,2.45601]
[1720995268554,0.63935281,3258.7,3257.3,5.45601]
[1720995268555,1.06273245,3258.0,3257.3,5.45601]
[1720995268756,0.63935281,3258.7,3257.3,5.45601]
[1720995269080,2.62488935,3258.6,3257.3,5.45601]
[1720995269251,2.62488935,3258.5,3257.4,1.273601]
[1720995269446,2.62490053,3258.4,3257.4,1.273601]
[1720995269651,1.56217928,3258.3,3257.4,1.273601]
[1720995269850,1.06279,3258.2,3257.2,7.28]
[1720995270155,2.62496928,3258.1,3257.2,7.28]
[1720995270370,0.9621333,3258.4,3257.3,2.45598]
[1720995270371,2.62496928,3258.0,3257.3,2.45598]
[1720995270588,0.6414222,3258.5,3257.3,2.45598]
[1720995270787,2.62499852,3258.4,3257.3,2.45598]
[1720995270981,2.62494785,3258.3,3257.4,0.973598]
[1720995271184,2.62494785,3258.2,3257.4,0.973598]
[1720995271502,0.64156304,3258.6,3257.4,0.973598]
[1720995271707,2.62484759,3258.5,3257.4,0.973598]
[1720995271999,2.62484759,3258.4,3257.4,0.973598]
[1720995272189,2.62484759,3258.3,3257.5,0.6429578]
[1720995272391,1.06268805,3258.2,3257.5,0.6429578]
[1720995272593,1.06268805,3258.5,3257.6,2.45578]
[1720995272779,2.6247636,3258.4,3257.6,3.0]
[1720995272982,2.6247636,3258.3,3257.7,0.36429578]
[1720995273299,0.96234457,3258.9,3257.5,0.6429578]
[1720995273300,0.64156304,3258.8,3257.5,0.6429578]
[1720995273480,2.62468793,3258.7,3257.5,0.6429578]
[1720995273683,2.62468793,3258.6,3257.5,0.6429578]
[1720995273885,2.62468793,3258.5,3257.5,0.6429578]
[1720995274110,1.06262538,3258.4,3257.5,0.6429578]
[1720995274282,0.64156304,3258.7,3257.6,0.70724958]
[1720995274470,2.62468124,3258.6,3257.6,0.70724958]
[1720995274672,2.62468887,3258.5,3257.6,0.70724958]
[1720995274990,2.62468887,3258.4,3257.6,0.70724958]
[1720995275192,2.62468887,3258.3,3257.4,3.973598]
[1720995275402,2.62468887,3258.2,3257.4,0.973598]
[1720995275573,1.06262744,3258.1,3257.4,0.973598]
[1720995275773,0.64156304,3258.4,3257.4,0.973598]
[1720995275986,2.62492929,3258.3,3257.4,0.973598]
[1720995276308,2.62492929,3258.2,3257.5,0.6429548]
[1720995276517,1.06272709,3258.1,3257.5,0.6429548]
[1720995276809,1.06272709,3258.2,3257.5,0.6429548]
[1720995277029,0.64156304,3258.5,3257.5,0.6429548]
[1720995277174,1.06274568,3258.1,3257.4,0.973598]
[1720995277374,2.62500676,3258.0,3257.4,0.973598]
[1720995277582,1.06274568,3257.9,3257.4,0.973598]
[1720995277842,0.16039076,3258.4,3257.3,3.0]
[1720995278133,0.64220981,3258.2,3257.3,3.0]
[1720995278293,3.26749057,3258.1,3257.3,3.0]
[1720995278491,0.64244028,3257.8,3257.2,7.60036222]
[1720995278724,2.62505029,3257.7,3257.2,7.28]
[1720995279031,0.64244028,3257.9,3256.6,7.28]
[1720995279325,0.96366043,3258.0,3256.7,0.728]
[1720995279326,3.26764224,3257.8,3256.7,0.728]
[1720995279531,1.5623683,3257.7,3256.7,1.04839826]
[1720995279742,1.5623683,3257.7,3256.9,2.4563]
[1720995279895,1.5623683,3257.6,3256.9,2.4563]
[1720995280096,0.64244028,3257.8,3256.9,2.4563]
[1720995280410,2.20480875,3257.7,3257.0,0.54563]
[1720995280718,1.56236847,3257.6,3257.0,0.54563]
[1720995281430,1.56236847,3257.6,3257.3,2.45595]
[1720995281603,0.64350775,3257.8,3257.1,6.00617]
[1720995281925,1.28701551,3258.1,3257.1,6.00617]
[1720995281926,1.56224973,3257.7,3257.3,2.45598]
[1720995282138,0.64350775,3257.9,3257.4,0.483788]
[1720995282309,1.56223337,3257.8,3257.4,0.483788]
[1720995282937,1.56223337,3257.8,3257.4,0.233788]
[1720995283139,1.56223337,3257.8,3257.5,2.45586]
[1720995283453,0.64350775,3258.2,3257.5,2.45586]
[1720995283636,1.56209247,3258.1,3257.6,2.7247348]
[1720995284067,0.64350775,3258.3,3257.6,2.7247348]
[1720995284239,1.56202896,3258.2,3257.6,2.7247348]
[1720995285879,1.56202896,3258.2,3257.6,2.6747348]
[1720995286379,2.20553671,3258.2,3257.6,2.6747348]
[1720995286563,1.56202896,3258.1,3257.6,2.6747348]
[1720995286974,2.20553671,3258.1,3257.6,0.2189648]
[1720995287177,1.56202896,3258.0,3257.6,0.2189648]
[1720995288179,1.56202896,3258.0,3257.5,3.0]
[1720995288347,1.56202896,3258.0,3257.4,3.233788]
[1720995288348,2.20575802,3258.0,3257.4,3.233788]
[1720995288542,2.20575802,3257.9,3257.4,3.233788]
[1720995288764,1.56202896,3257.8,3257.4,3.233788]
[1720995289481,2.20575802,3257.8,3257.4,3.0]
[1720995289689,0.64372906,3257.7,3257.1,3.0]
[1720995289982,0.64372906,3257.8,3257.1,3.0]
[1720995290153,0.64372906,3257.8,3257.1,4.34222984]
[1720995291154,0.64372906,3257.7,3257.1,4.34222984]
[1720995292984,0.64372906,3257.8,3257.1,6.79836984]
[1720995293154,0.64372906,3257.8,3257.1,2.79836984]
[1720995293355,0.64372906,3257.8,3257.2,0.33439998]
[1720995294292,0.6438952,3257.8,3257.2,0.33439998]
[1720995295491,0.6438952,3258.0,3257.3,2.45595]
[1720995297457,0.6438952,3258.1,3257.4,2.45593]
[1720995297761,0.6438952,3258.0,3257.4,2.45593]
[1720995297967,0.96584281,3258.2,3257.4,2.45593]
[1720995297968,0.6438952,3258.1,3257.4,2.45593]
[1720995298173,0.6438952,3258.0,3257.5,0.491188]
[1720995298509,0.6438952,3258.0,3257.5,2.947038]
[1720995299593,0.6438952,3258.0,3257.6,2.45578]
[1720995299801,0.6438952,3258.1,3257.6,2.45578]
[1720995300297,0.6438952,3258.1,3257.5,2.947038]
[1720995300502,0.6438952,3258.1,3257.6,2.45576]
[1720995301163,0.6438952,3258.1,3257.5,0.491188]
[1720995301500,0.6438952,3258.0,3257.4,2.45588]
[1720995301706,0.6438952,3258.1,3257.6,2.45579]
[1720995303495,0.6438952,3258.1,3257.4,2.45588]
[1720995303681,0.6438952,3258.0,3257.6,2.45579]
[1720995304206,0.6438952,3258.0,3257.6,2.946957]
[1720995304361,0.6438952,3257.9,3257.2,2.77627428]
[1720995304563,0.6438952,3257.8,3257.2,2.77627428]
[1720995304768,0.6438952,3257.6,3257.2,2.77627428]
[1720995305110,1.28779041,3257.9,3257.2,3.29952271]
[1720995305111,0.6438952,3257.7,3257.2,3.29952271]
[1720995305261,0.6438952,3257.9,3257.5,2.45579]
[1720995305462,0.6438952,3258.0,3257.5,2.45579]
[1720995305975,0.96584281,3258.1,3257.2,3.29955271]
[1720995305976,0.6438952,3257.9,3257.2,3.29955271]
[1720995306180,0.6438952,3257.8,3257.2,3.29955271]
[1720995306372,0.6438952,3257.8,3257.3,0.57248527]
[1720995306875,0.6438952,3257.9,3257.5,2.45584]
[1720995308181,0.6438952,3257.8,3257.4,2.45594]
[1720995309200,0.96584281,3258.0,3257.3,0.57248527]
[1720995309201,0.6438952,3257.9,3257.3,0.57248527]
[1720995309389,0.6438952,3257.8,3257.3,0.57248527]
[1720995309583,0.6438952,3257.7,3257.4,2.79075095]
[1720995309897,0.6438952,3258.1,3257.8,2.45563]
[1720995310137,0.6438952,3258.2,3257.8,2.45563]
[1720995310290,0.96584281,3258.4,3257.8,2.45563]
[1720995310291,0.6438952,3258.3,3257.8,2.45563]
[1720995310688,1.28779041,3258.6,3257.6,7.15573]
[1720995310689,0.6438952,3258.4,3258.2,2.45534]
[1720995310931,1.28779041,3258.7,3258.2,2.45534]
[1720995310932,0.6438952,3258.7,3258.2,2.45534]
[1720995311088,0.96584281,3258.8,3258.3,2.76215413]
[1720995311089,0.6438952,3258.8,3258.3,2.76215413]
[1720995311516,0.6438952,3258.9,3258.4,6.00515]
[1720995311731,0.6438952,3259.0,3258.4,3.00515]
[1720995312029,0.96584281,3259.1,3258.4,3.00515]
[1720995312030,0.6438952,3259.1,3258.7,2.45495]
[1720995312234,0.6438952,3259.1,3258.7,3.25208144]
[1720995312386,0.6438952,3259.2,3258.7,3.25208144]
[1720995312786,0.6438952,3259.2,3258.8,2.45488]
[1720995312996,0.6438952,3259.5,3258.8,5.51624139]
[1720995313227,0.6438952,3259.6,3258.8,5.51624139]
[1720995313439,0.6438952,3259.6,3258.8,6.39307867]
[1720995313796,0.6438952,3259.6,3258.8,3.93819867]
[1720995313997,0.6438952,3259.5,3258.8,0.87683728]
[1720995314392,0.6438952,3259.4,3258.7,2.45496]
[1720995314630,0.6438952,3259.4,3258.3,0.245534]
[1720995314631,0.6438952,3259.2,3258.3,0.245534]
[1720995314827,0.6438952,3259.1,3258.3,3.245534]
[1720995315110,0.6438952,3259.0,3258.3,3.245534]
[1720995315441,3.0,3260.1,3258.3,3.245534]
[1720995315651,0.64298982,3259.1,3258.4,1.2980874]
[1720995315806,0.64298982,3259.2,3258.4,1.2980874]
[1720995316214,0.64298982,3259.3,3258.4,1.2980874]
[1720995316419,0.64298982,3259.4,3258.6,2.45502]
[1720995317020,0.64298982,3259.5,3258.6,2.45502]
[1720995317318,0.64298982,3259.6,3258.7,0.300502]
[1720995317646,0.64298982,3259.5,3258.6,2.45502]
[1720995317819,0.64298982,3259.6,3258.6,2.45502]
[1720995318021,0.64298982,3259.5,3258.6,2.45502]